Publisher Label,Publisher URI,"Payment Date","Organisational Unit","Beneficiary Name","Purpose","Amount (£)","Irrecoverable VAT Amount (£)","Merchant Category"
"Wolverhampton City Council","http://opendatacommunities.org/id/metropolitan-district-council/wolverhampton","17/02/16","Governance","ADARE LTD","Comms - Postage","5,114.70","0.00","4812"
"Wolverhampton City Council","http://opendatacommunities.org/id/metropolitan-district-council/wolverhampton","16/03/16","Pension Operations","Barnett Waddingham LLP","Actuarial Fees","1,300.00","0.00","6012"
"Wolverhampton City Council","http://opendatacommunities.org/id/metropolitan-district-council/wolverhampton","15/02/16","Pension Operations","Barnett Waddingham LLP","Services - Professional Fees","1,310.00","0.00","6012"
"Wolverhampton City Council","http://opendatacommunities.org/id/metropolitan-district-council/wolverhampton","15/02/16","Pension Operations","Barnett Waddingham LLP","Services - Professional Fees","2,620.00","0.00","6012"
"Wolverhampton City Council","http://opendatacommunities.org/id/metropolitan-district-council/wolverhampton","16/03/16","Pension Operations","Barnett Waddingham LLP","Actuarial Fees","2,963.75","0.00","6012"
"Wolverhampton City Council","http://opendatacommunities.org/id/metropolitan-district-council/wolverhampton","11/04/16","Pension Operations","Barnett Waddingham LLP","Actuarial Fees","3,160.00","0.00","6012"
"Wolverhampton City Council","http://opendatacommunities.org/id/metropolitan-district-council/wolverhampton","16/03/16","Pension Operations","Barnett Waddingham LLP","Actuarial Fees","3,245.00","0.00","6012"
"Wolverhampton City Council","http://opendatacommunities.org/id/metropolitan-district-council/wolverhampton","11/04/16","Pension Operations","Barnett Waddingham LLP","Actuarial Fees","3,800.00","0.00","6012"
"Wolverhampton City Council","http://opendatacommunities.org/id/metropolitan-district-council/wolverhampton","19/02/16","Pension Operations","Barnett Waddingham LLP","Actuarial Fees","8,387.50","0.00","6012"
"Wolverhampton City Council","http://opendatacommunities.org/id/metropolitan-district-council/wolverhampton","16/02/16","Pension Operations","Barnett Waddingham LLP","Services - Professional Fees","17,280.00","0.00","6012"
"Wolverhampton City Council","http://opendatacommunities.org/id/metropolitan-district-council/wolverhampton","11/02/16","Pension Operations","BIRMINGHAM CITY COUNCIL","Comms - Postage","1,998.62","0.00","9399"
"Wolverhampton City Council","http://opendatacommunities.org/id/metropolitan-district-council/wolverhampton","10/03/16","Pension Operations","BIRMINGHAM CITY COUNCIL","Comms - Postage","2,185.98","0.00","9399"
"Wolverhampton City Council","http://opendatacommunities.org/id/metropolitan-district-council/wolverhampton","19/01/16","Pension Operations","BIRMINGHAM CITY COUNCIL","Comms - Postage","2,209.70","0.00","9399"
"Wolverhampton City Council","http://opendatacommunities.org/id/metropolitan-district-council/wolverhampton","19/02/16","Financial Services","Birmingham City University","Training Expenses","580.00","0.00","8299"
"Wolverhampton City Council","http://opendatacommunities.org/id/metropolitan-district-council/wolverhampton","15/01/16","Pension Operations","Birmingham City University","Comms - Postage","1,100.00","0.00","8299"
"Wolverhampton City Council","http://opendatacommunities.org/id/metropolitan-district-council/wolverhampton","31/03/16","Property and legal fees","Brooks Ecological Ltd","Services - Professional Fees","815.00","0.00","8999"
"Wolverhampton City Council","http://opendatacommunities.org/id/metropolitan-district-council/wolverhampton","31/03/16","Financial Services","CIPFA BUSINESS LIMITED","Training Expenses","750.00","0.00","8999"
"Wolverhampton City Council","http://opendatacommunities.org/id/metropolitan-district-council/wolverhampton","20/04/16","Financial Services","CIPFA BUSINESS LIMITED","Training Expenses","6,030.00","0.00","8999"
"Wolverhampton City Council","http://opendatacommunities.org/id/metropolitan-district-council/wolverhampton","15/03/16","Pension Operations","CIVICA UK LIMITED","Computing - Maint Agreements","500.00","0.00","5045"
"Wolverhampton City Council","http://opendatacommunities.org/id/metropolitan-district-council/wolverhampton","18/03/16","Pension Operations","CIVICA UK LIMITED","Computing - Maint Agreements","15,563.52","0.00","5045"
"Wolverhampton City Council","http://opendatacommunities.org/id/metropolitan-district-council/wolverhampton","15/01/16","Pension Operations","CIVICA UK LIMITED","Computing - Maint Agreements","17,215.50","0.00","5045"
"Wolverhampton City Council","http://opendatacommunities.org/id/metropolitan-district-council/wolverhampton","15/01/16","Pension Operations","CIVICA UK LIMITED","Computing - Maint Agreements","63,736.00","0.00","5045"
"Wolverhampton City Council","http://opendatacommunities.org/id/metropolitan-district-council/wolverhampton","18/03/16","Pension Operations","CIVICA UK LIMITED","Computing - Maint Agreements","69,850.48","0.00","5045"
"Wolverhampton City Council","http://opendatacommunities.org/id/metropolitan-district-council/wolverhampton","15/02/16","Governance","Coach And Bus Hire","Conference Expenses","1,300.00","0.00","4131"
"Wolverhampton City Council","http://opendatacommunities.org/id/metropolitan-district-council/wolverhampton","10/03/16","Governance","DTZ DTL LTD CLIENT AC:COMMONRECEIPTS","Rent","1,066.26","0.00","7523"
"Wolverhampton City Council","http://opendatacommunities.org/id/metropolitan-district-council/wolverhampton","09/03/16","Governance","DTZ DTL LTD CLIENT AC:COMMONRECEIPTS","Rent","19,617.40","0.00","7523"
"Wolverhampton City Council","http://opendatacommunities.org/id/metropolitan-district-council/wolverhampton","14/01/16","Governance","DTZ DTL LTD CLIENT AC:COMMONRECEIPTS","Rent","29,221.88","0.00","7523"
"Wolverhampton City Council","http://opendatacommunities.org/id/metropolitan-district-council/wolverhampton","12/01/16","Governance","DTZ DTL LTD CLIENT AC:COMMONRECEIPTS","Rent","29,221.88","0.00","7523"
"Wolverhampton City Council","http://opendatacommunities.org/id/metropolitan-district-council/wolverhampton","29/03/16","Governance","DTZ DTL LTD CLIENT AC:COMMONRECEIPTS","Rent","48,839.28","0.00","7523"
"Wolverhampton City Council","http://opendatacommunities.org/id/metropolitan-district-council/wolverhampton","08/02/16","Pension Operations","Equiniti","Comms - Postage","8,157.66","0.00","9402"
"Wolverhampton City Council","http://opendatacommunities.org/id/metropolitan-district-council/wolverhampton","17/03/16","Investment - Revenue","FTSE INTERNATIONAL LTD","Services - Professional Fees","9,440.00","0.00","5045"
"Wolverhampton City Council","http://opendatacommunities.org/id/metropolitan-district-council/wolverhampton","17/03/16","Investment - Revenue","FTSE INTERNATIONAL LTD","Services - Professional Fees","86,055.00","0.00","5045"
"Wolverhampton City Council","http://opendatacommunities.org/id/metropolitan-district-council/wolverhampton","07/03/16","Pension Operations","Genus","Computing - Maint Agreements","5,716.00","0.00","5045"
"Wolverhampton City Council","http://opendatacommunities.org/id/metropolitan-district-council/wolverhampton","14/01/16","Governance","Goss Interactive Ltd","Training Expenses","840.00","0.00","8299"
"Wolverhampton City Council","http://opendatacommunities.org/id/metropolitan-district-council/wolverhampton","19/01/16","Governance","Grand Station","Conference Expenses","1,930.40","0.00","8999"
"Wolverhampton City Council","http://opendatacommunities.org/id/metropolitan-district-council/wolverhampton","19/01/16","Governance","Grand Station","Conference Expenses","2,758.75","0.00","8999"
"Wolverhampton City Council","http://opendatacommunities.org/id/metropolitan-district-council/wolverhampton","21/03/16","Governance","Grange Hotels","Training Expenses","7,297.00","0.00","7011"
"Wolverhampton City Council","http://opendatacommunities.org/id/metropolitan-district-council/wolverhampton","20/04/16","Financial Services","Grant Thornton UK LLP","Services - Professional Fees","12,154.00","0.00","8931"
"Wolverhampton City Council","http://opendatacommunities.org/id/metropolitan-district-council/wolverhampton","29/02/16","Financial Services","Grant Thornton UK LLP","Services - Professional Fees","24,310.00","0.00","8931"
"Wolverhampton City Council","http://opendatacommunities.org/id/metropolitan-district-council/wolverhampton","15/01/16","Investment - Revenue","HSBC BANK PLC/HSBC SECURITY SERVICES","Services - Professional Fees","2,691.77","0.00","6012"
"Wolverhampton City Council","http://opendatacommunities.org/id/metropolitan-district-council/wolverhampton","21/03/16","Investment - Revenue","HSBC BANK PLC/HSBC SECURITY SERVICES","Services - Professional Fees","2,731.00","0.00","6012"
"Wolverhampton City Council","http://opendatacommunities.org/id/metropolitan-district-council/wolverhampton","13/04/16","Investment - Revenue","HSBC BANK PLC/HSBC SECURITY SERVICES","Services - Professional Fees","2,731.00","0.00","6012"
"Wolverhampton City Council","http://opendatacommunities.org/id/metropolitan-district-council/wolverhampton","22/02/16","Investment - Revenue","HSBC BANK PLC/HSBC SECURITY SERVICES","Services - Professional Fees","5,307.00","0.00","6012"
"Wolverhampton City Council","http://opendatacommunities.org/id/metropolitan-district-council/wolverhampton","19/01/16","Financial Services","HYMANS ROBERTSON LLP","Services - Professional Fees","3,333.00","0.00","6012"
"Wolverhampton City Council","http://opendatacommunities.org/id/metropolitan-district-council/wolverhampton","11/04/16","Financial Services","HYMANS ROBERTSON LLP","Services - Professional Fees","5,833.00","0.00","6012"
"Wolverhampton City Council","http://opendatacommunities.org/id/metropolitan-district-council/wolverhampton","29/03/16","Financial Services","HYMANS ROBERTSON LLP","Services - Professional Fees","5,833.00","0.00","6012"
"Wolverhampton City Council","http://opendatacommunities.org/id/metropolitan-district-council/wolverhampton","19/02/16","Financial Services","HYMANS ROBERTSON LLP","Services - Professional Fees","5,833.00","0.00","6012"
"Wolverhampton City Council","http://opendatacommunities.org/id/metropolitan-district-council/wolverhampton","22/02/16","Financial Services","HYMANS ROBERTSON LLP","Services - Professional Fees","13,273.00","0.00","6012"
"Wolverhampton City Council","http://opendatacommunities.org/id/metropolitan-district-council/wolverhampton","18/01/16","Investments Fund Account","IIGCC","Subscriptions","6,300.00","0.00","8999"
"Wolverhampton City Council","http://opendatacommunities.org/id/metropolitan-district-council/wolverhampton","17/03/16","Pension Operations","Independent Transition Management Ltd","Publications","5,000.00","0.00","8999"
"Wolverhampton City Council","http://opendatacommunities.org/id/metropolitan-district-council/wolverhampton","15/01/16","Executive","International Compliance Training Ltd","Training Expenses","3,255.00","0.00","8299"
"Wolverhampton City Council","http://opendatacommunities.org/id/metropolitan-district-council/wolverhampton","21/01/16","Governance","Kaizen Consultants","Printing","645.00","0.00","2741"
"Wolverhampton City Council","http://opendatacommunities.org/id/metropolitan-district-council/wolverhampton","22/02/16","Governance","Kaizen Consultants","Printing","645.00","0.00","2741"
"Wolverhampton City Council","http://opendatacommunities.org/id/metropolitan-district-council/wolverhampton","21/01/16","Governance","Kaizen Consultants","Printing","736.00","0.00","2741"
"Wolverhampton City Council","http://opendatacommunities.org/id/metropolitan-district-council/wolverhampton","15/01/16","Executive","Local Government Association","Subscriptions","21,729.00","0.00","9399"
"Wolverhampton City Council","http://opendatacommunities.org/id/metropolitan-district-council/wolverhampton","10/02/16","Investments Fund Account","LONDON STOCK EXCHANGE PLC","Services - General Licences","568.36","0.00","6012"
"Wolverhampton City Council","http://opendatacommunities.org/id/metropolitan-district-council/wolverhampton","26/02/16","Pension Operations","Pension Management Institute","Training Expenses","782.50","0.00","8299"
"Wolverhampton City Council","http://opendatacommunities.org/id/metropolitan-district-council/wolverhampton","19/02/16","Investment - Revenue","Portfolio Evalutaion Limited","Services - Professional Fees","5,812.50","0.00","8999"
"Wolverhampton City Council","http://opendatacommunities.org/id/metropolitan-district-council/wolverhampton","22/03/16","Pension Operations","QAS LIMITED T/A EXPERIAN QAS","Computing - Maint Agreements","10,234.24","0.00","5045"
"Wolverhampton City Council","http://opendatacommunities.org/id/metropolitan-district-council/wolverhampton","02/03/16","Pension Operations","Redactive Publishing Limited","Staff Advertising Costs","525.00","0.00","7311"
"Wolverhampton City Council","http://opendatacommunities.org/id/metropolitan-district-council/wolverhampton","15/02/16","Governance","RoSPA","Training Expenses","1,795.00","0.00","8299"
"Wolverhampton City Council","http://opendatacommunities.org/id/metropolitan-district-council/wolverhampton","22/01/16","Governance","ROYAL MAIL GROUP PLC","Comms - Postage","750.64","0.00","9402"
"Wolverhampton City Council","http://opendatacommunities.org/id/metropolitan-district-council/wolverhampton","09/03/16","Governance","ROYAL MAIL GROUP PLC","Comms - Postage","811.27","0.00","9402"
"Wolverhampton City Council","http://opendatacommunities.org/id/metropolitan-district-council/wolverhampton","03/02/16","Governance","ROYAL MAIL GROUP PLC","Comms - Postage","845.89","0.00","9402"
"Wolverhampton City Council","http://opendatacommunities.org/id/metropolitan-district-council/wolverhampton","01/04/16","Governance","ROYAL MAIL GROUP PLC","Comms - Postage","846.50","0.00","9402"
"Wolverhampton City Council","http://opendatacommunities.org/id/metropolitan-district-council/wolverhampton","26/02/16","Governance","ROYAL MAIL GROUP PLC","Comms - Postage","1,034.69","0.00","9402"
"Wolverhampton City Council","http://opendatacommunities.org/id/metropolitan-district-council/wolverhampton","03/02/16","Governance","ROYAL MAIL GROUP PLC","Comms - Postage","1,287.89","0.00","9402"
"Wolverhampton City Council","http://opendatacommunities.org/id/metropolitan-district-council/wolverhampton","03/02/16","Governance","ROYAL MAIL GROUP PLC","Comms - Postage","1,294.49","0.00","9402"
"Wolverhampton City Council","http://opendatacommunities.org/id/metropolitan-district-council/wolverhampton","08/02/16","Pension Operations","South West Councils","Conference Expenses","1,302.00","0.00","9399"
"Wolverhampton City Council","http://opendatacommunities.org/id/metropolitan-district-council/wolverhampton","17/02/16","Investment - Revenue","Tedmoor Consultancy Ltd","Investment Management Expenses","3,949.50","0.00","8999"
"Wolverhampton City Council","http://opendatacommunities.org/id/metropolitan-district-council/wolverhampton","17/02/16","Investment - Revenue","Tedmoor Consultancy Ltd","Investment Management Expenses","4,350.00","0.00","8999"
"Wolverhampton City Council","http://opendatacommunities.org/id/metropolitan-district-council/wolverhampton","02/03/2016","Investments Fund Account","The Financial Times Limited","Staff Advertising Costs","2,241.00","0.00","5192"
"Wolverhampton City Council","http://opendatacommunities.org/id/metropolitan-district-council/wolverhampton","04/04/2016","Investment - Revenue","THE WORLD MARKETS COMPANY PLC","Services - Professional Fees","1,490.00","0.00","8999"
"Wolverhampton City Council","http://opendatacommunities.org/id/metropolitan-district-council/wolverhampton","17/02/2016","Investment - Revenue","THE WORLD MARKETS COMPANY PLC","Services - Professional Fees","2,448.00","0.00","8999"
"Wolverhampton City Council","http://opendatacommunities.org/id/metropolitan-district-council/wolverhampton","01/03/2016","Pension Operations","UK MAIL LTD/BUSINESSPOST INTERNATNL.","Comms - Postage","653.99","0.00","4215"
"Wolverhampton City Council","http://opendatacommunities.org/id/metropolitan-district-council/wolverhampton","05/04/2016","Pension Operations","UK MAIL LTD/BUSINESSPOST INTERNATNL.","Comms - Postage","685.14","0.00","4215"
"Wolverhampton City Council","http://opendatacommunities.org/id/metropolitan-district-council/wolverhampton","22/02/2016","Pension Operations","UK MAIL LTD/BUSINESSPOST INTERNATNL.","Comms - Postage","763.94","0.00","4215"
"Wolverhampton City Council","http://opendatacommunities.org/id/metropolitan-district-council/wolverhampton","15/01/2016","Pension Operations","UK MAIL LTD/BUSINESSPOST INTERNATNL.","Comms - Postage","2,110.51","0.00","4215"
"Wolverhampton City Council","http://opendatacommunities.org/id/metropolitan-district-council/wolverhampton","03/02/2016","Pension Operations","Wilmington Millennium","Computing - Maint Agreements","6,020.00","0.00","5045"
"Wolverhampton City Council","http://opendatacommunities.org/id/metropolitan-district-council/wolverhampton","09/03/2016","Pension Operations","Yoo","Agency Staff","1,264.29","0.00","7361"
"Wolverhampton City Council","http://opendatacommunities.org/id/metropolitan-district-council/wolverhampton","15/03/2016","Pension Operations","Yoo","Agency Staff","2,830.05","0.00","7361"
"Wolverhampton City Council","http://opendatacommunities.org/id/metropolitan-district-council/wolverhampton","31/03/2016","Pension Operations","Yoo","Agency Staff","3,307.12","0.00","7361"
"Wolverhampton City Council","http://opendatacommunities.org/id/metropolitan-district-council/wolverhampton","15/03/2016","Pension Operations","Yoo","Agency Staff","3,702.72","0.00","7361"
"Wolverhampton City Council","http://opendatacommunities.org/id/metropolitan-district-council/wolverhampton","19/04/2016","Pension Operations","Yoo","Agency Staff","5,766.27","0.00","7361"
"Wolverhampton City Council","http://opendatacommunities.org/id/metropolitan-district-council/wolverhampton","03/02/2016","Pension Operations","Yoo","Agency Staff","6,098.31","0.00","7361"
"Wolverhampton City Council","http://opendatacommunities.org/id/metropolitan-district-council/wolverhampton","09/03/2016","Pension Operations","Yoo","Agency Staff","6,982.06","0.00","7361"
"Wolverhampton City Council","http://opendatacommunities.org/id/metropolitan-district-council/wolverhampton","03/02/2016","Pension Operations","Yoo","Agency Staff","15,330.06","0.00","7361"
